bitfinex-derivatives/quotes_BTCF0:USTF0_20241208
["timestamp","ask_amount","ask_price","bid_price","bid_amount"]
[1733653093196,0.046251,99377.0,99376.0,0.1005162]
[1733653093699,0.09416175,99385.0,99376.0,0.1005162]
[1733653093890,0.0039,99385.0,99384.0,0.045248]
[1733653094085,0.0039,99385.0,99384.0,0.0597122]
[1733653094985,0.050148,99385.0,99384.0,0.0597122]
[1733653095192,0.050148,99385.0,99384.0,0.0144642]
[1733653095399,0.050148,99385.0,99384.0,0.01446341]
[1733653095899,0.051148,99385.0,99384.0,0.01446341]
[1733653096088,0.17164065,99385.0,99384.0,0.01446341]
[1733653096289,0.045251,99377.0,99376.0,0.001]
[1733653096498,0.406051,99377.0,99376.0,0.001]
[1733653096693,0.406051,99377.0,99367.0,0.06379316]
[1733653096694,0.045254,99372.0,99367.0,0.06379316]
[1733653096885,0.045254,99372.0,99368.0,0.082955]
[1733653096886,0.3608,99369.0,99368.0,0.082955]
[1733653097802,0.0902646,99376.0,99375.0,0.045252]
[1733653097985,0.045252,99376.0,99375.0,0.045252]
[1733653098694,0.045255,99371.0,99370.0,0.045254]
[1733653099294,0.001,99372.0,99368.0,0.0387]
[1733653099494,0.3608,99376.0,99368.0,0.001]
[1733653099495,0.045255,99369.0,99368.0,0.001]
[1733653100888,0.045257,99366.0,99365.0,0.000359]
[1733653101294,0.406057,99366.0,99365.0,0.000359]
[1733653101494,0.045258,99364.0,99362.0,0.000359]
[1733653101687,0.045258,99363.0,99362.0,0.000359]
[1733653101895,0.045258,99363.0,99360.0,0.18025188]
[1733653101896,0.045259,99362.0,99361.0,0.000359]
[1733653102498,0.045259,99362.0,99357.0,0.22551288]
[1733653102499,0.4520646,99366.0,99357.0,0.22551288]
[1733653102696,0.04526,99358.0,99357.0,0.22551288]
[1733653103395,0.04526,99358.0,99357.0,0.045261]
[1733653103603,0.04526,99358.0,99357.0,0.22556452]
[1733653103897,0.04526,99358.0,99357.0,0.045261]
[1733653104090,0.04626,99358.0,99357.0,0.048261]
[1733653104291,0.04726,99358.0,99357.0,0.05555109]
[1733653104595,0.04726,99358.0,99357.0,0.23585461]
[1733653104999,0.04726,99358.0,99357.0,0.05555109]
[1733653105700,0.04726,99358.0,99357.0,0.05555099]
[1733653106202,0.04726,99358.0,99357.0,0.06058295]
[1733653107400,0.04726,99358.0,99357.0,0.01532195]
[1733653108303,0.04726,99358.0,99357.0,0.01846711]
[1733653109002,0.04726,99358.0,99357.0,0.01846789]
[1733653110903,0.1375246,99358.0,99357.0,0.01846789]
[1733653111602,0.04726,99358.0,99357.0,0.01846789]
[1733653111896,0.1375246,99358.0,99357.0,0.01846789]
[1733653112595,0.1375246,99358.0,99357.0,0.00903231]
[1733653112797,0.04726,99358.0,99357.0,0.01846817]
[1733653113898,0.40806,99358.0,99357.0,0.01846817]
[1733653114498,0.4983246,99358.0,99357.0,0.01846817]
[1733653115501,0.40806,99358.0,99357.0,0.01846817]
[1733653116100,0.40806,99358.0,99357.0,0.01846812]
[1733653121504,0.54841287,99358.0,99357.0,0.01846812]
[1733653122007,0.54841287,99358.0,99357.0,0.01846815]
[1733653122309,0.18761287,99358.0,99357.0,0.01846815]
[1733653122506,0.42806,99358.0,99357.0,0.01846815]
[1733653123201,0.42806,99358.0,99357.0,0.004]
[1733653123407,0.42806,99358.0,99357.0,0.01846817]
[1733653124293,0.42806,99358.0,99357.0,0.01882746]
[1733653125000,0.43196,99358.0,99357.0,0.01846817]
[1733653125205,0.43569472,99358.0,99347.0,0.00035935]
[1733653125404,0.43569472,99358.0,99334.0,0.00151002]
[1733653125405,0.406065,99348.0,99334.0,0.00151002]
[1733653125604,0.045271,99335.0,99334.0,0.18181354]
[1733653125805,0.406071,99335.0,99334.0,0.18181354]
[1733653125998,0.406071,99335.0,99334.0,0.00151002]
[1733653126204,0.406071,99335.0,99334.0,0.01381064]
[1733653126504,0.406071,99335.0,99334.0,0.05908164]
[1733653126706,0.09037044,99340.0,99334.0,0.06208164]
[1733653126913,0.09037044,99340.0,99339.0,0.045269]
[1733653127109,0.09036874,99344.0,99336.0,0.18030352]
[1733653127411,0.045266,99346.0,99345.0,0.045266]
[1733653127412,0.0903651,99346.0,99345.0,0.045266]
[1733653127799,0.001,99348.0,99343.0,0.0396]
[1733653128011,0.046265,99348.0,99347.0,0.045266]
[1733653128215,0.045265,99348.0,99347.0,0.045266]
[1733653128912,0.046265,99348.0,99347.0,0.045266]
[1733653129302,0.045265,99348.0,99347.0,0.045266]
[1733653129502,0.046265,99348.0,99347.0,0.045266]
[1733653129805,0.001,99348.0,99347.0,0.045266]
[1733653130001,0.02397296,99358.0,99347.0,0.045266]
[1733653130201,0.02397296,99358.0,99357.0,0.22574201]
[1733653130404,0.02397296,99358.0,99357.0,0.045261]
[1733653131624,0.02497296,99358.0,99357.0,0.045261]
[1733653132214,0.02597296,99358.0,99357.0,0.045261]
[1733653133202,0.02597296,99358.0,99357.0,0.05155072]
[1733653134204,0.02597296,99358.0,99357.0,0.05155068]
[1733653135115,0.02597296,99358.0,99357.0,0.05658243]
[1733653137221,0.02597296,99358.0,99357.0,0.05972727]
[1733653138306,0.02597296,99358.0,99357.0,0.0571162]
[1733653138514,0.02597296,99358.0,99357.0,0.07158246]
[1733653139217,0.00597296,99358.0,99357.0,0.07158246]
[1733653140216,0.00597296,99358.0,99357.0,0.07158244]
[1733653140416,0.00597296,99358.0,99357.0,0.25197802]
[1733653140619,0.00597296,99358.0,99357.0,0.07158244]
[1733653140818,0.00597296,99358.0,99357.0,0.25197753]
[1733653141520,0.00597296,99358.0,99357.0,0.25197752]
[1733653142411,0.00597296,99358.0,99357.0,0.23751129]
[1733653142612,0.00597296,99358.0,99357.0,0.25197753]
[1733653143421,0.00597296,99358.0,99357.0,0.07158244]
[1733653144826,0.05123396,99358.0,99357.0,0.07158244]
[1733653145122,0.00597296,99358.0,99357.0,0.07158244]
[1733653146931,0.05123296,99358.0,99357.0,0.19476881]
[1733653147140,0.05123296,99358.0,99357.0,0.01446624]
[1733653147525,0.14159806,99358.0,99357.0,0.01446624]
[1733653148131,0.05123296,99358.0,99357.0,0.01446624]
[1733653150731,0.06300482,99358.0,99357.0,0.01446624]
[1733653151329,0.06300482,99358.0,99347.0,0.00035927]
[1733653151330,0.16839909,99358.0,99347.0,0.00035927]
[1733653151530,0.3608,99349.0,99344.0,0.00035927]
[1733653151732,0.3608,99349.0,99342.0,0.00035927]
[1733653151733,0.0393,99348.0,99342.0,0.00035927]
[1733653151934,0.045267,99344.0,99343.0,0.00035927]
[1733653152133,0.045268,99342.0,99341.0,0.00035927]
[1733653152332,0.045269,99340.0,99339.0,0.045269]
[1733653153040,0.045269,99340.0,99339.0,0.0456282]
[1733653153236,0.45215063,99341.0,99335.0,0.045271]
[1733653153237,0.3618,99341.0,99335.0,0.045271]
[1733653153546,0.045271,99336.0,99335.0,0.045271]
[1733653153842,0.045271,99335.0,99334.0,0.0136565]
[1733653154737,0.044271,99335.0,99334.0,0.0136565]
[1733653155040,0.0039,99335.0,99334.0,0.0589275]
[1733653155435,0.0049,99335.0,99334.0,0.0599275]
[1733653156036,0.0059,99335.0,99334.0,0.0599275]
[1733653156333,0.0059,99335.0,99334.0,0.30051808]
[1733653156531,0.0059,99335.0,99334.0,0.0599275]
[1733653158242,0.045267,99345.0,99344.0,0.045267]
[1733653158945,0.3608,99350.0,99334.0,0.0599275]
[1733653158946,0.406064,99350.0,99349.0,0.045265]
[1733653159145,0.09035063,99352.0,99351.0,0.045264]
[1733653159450,0.15907577,99357.0,99351.0,0.00629038]
[1733653159451,0.0386,99357.0,99351.0,0.00629038]
[1733653159739,0.0386,99357.0,99352.0,0.00629038]
[1733653159946,0.083863,99357.0,99356.0,0.045261]
[1733653160140,0.083863,99357.0,99356.0,0.05155138]
[1733653160544,0.083863,99357.0,99356.0,0.05191051]
[1733653160735,0.12895063,99357.0,99356.0,0.05155138]
[1733653161445,0.0386,99357.0,99356.0,0.05658352]
[1733653162149,0.0396,99357.0,99356.0,0.05858352]
[1733653162333,0.001,99357.0,99356.0,0.05858352]
[1733653162538,0.002,99357.0,99356.0,0.06058352]
[1733653162940,0.002,99357.0,99356.0,0.42138352]
[1733653163139,0.002,99357.0,99356.0,0.421383]
[1733653163343,0.002,99357.0,99356.0,0.42452786]
[1733653163641,0.002,99357.0,99356.0,0.42452719]
[1733653163944,0.002,99357.0,99356.0,0.66488764]
[1733653165245,0.002,99357.0,99356.0,0.42452719]
[1733653166140,0.002,99357.0,99356.0,0.46432719]
[1733653169347,0.002,99357.0,99356.0,0.56497485]
[1733653170244,7.296e-05,99358.0,99356.0,0.56497485]
[1733653170439,7.296e-05,99358.0,99357.0,0.01446619]
[1733653171042,7.296e-05,99358.0,99357.0,0.11511385]
[1733653171237,0.00107296,99358.0,99357.0,0.11511385]
[1733653171444,0.00107296,99358.0,99357.0,0.83671385]
[1733653171653,0.00207296,99358.0,99357.0,0.83771385]
[1733653172145,0.00207296,99358.0,99357.0,0.83871385]
[1733653172851,9.6e-07,99358.0,99357.0,0.83871385]
[1733653173243,9.6e-07,99358.0,99357.0,0.83871208]
[1733653177246,0.0407,99381.0,99359.0,0.13578]
[1733653177247,0.13105063,99381.0,99359.0,0.13578]
[1733653177452,0.13105063,99381.0,99380.0,0.04525]
[1733653177747,0.13105063,99381.0,99380.0,0.05971442]
[1733653178152,0.17630063,99381.0,99380.0,0.01446442]
[1733653178345,0.08695,99381.0,99380.0,0.01446442]
[1733653178954,0.08695,99381.0,99380.0,0.01846442]
[1733653179152,0.08795,99381.0,99380.0,0.02146442]
[1733653180049,0.08795,99381.0,99380.0,0.02146447]
[1733653183352,0.08795,99381.0,99380.0,0.01643336]
[1733653183557,0.08795,99381.0,99380.0,0.02146449]
[1733653187353,0.20842577,99381.0,99380.0,0.02146449]
[1733653188150,0.08795,99381.0,99380.0,0.02146449]
[1733653190154,0.23860427,99381.0,99380.0,0.02146449]
[1733653191158,0.13686106,99381.0,99380.0,0.02146449]
[1733653191549,0.49766106,99381.0,99380.0,0.02146449]
[1733653191754,0.67840793,99381.0,99380.0,0.02146449]
[1733653192163,0.49766106,99381.0,99380.0,0.02146449]
[1733653193761,0.49766106,99381.0,99380.0,0.021466]
[1733653195663,0.13686106,99381.0,99380.0,0.021466]
[1733653195967,0.62028129,99381.0,99380.0,0.021466]
[1733653196770,0.62028129,99381.0,99380.0,0.02146603]
[1733653198259,0.6203955,99381.0,99380.0,0.02146603]
[1733653198761,0.2595955,99381.0,99380.0,0.02146603]
[1733653198958,0.6203955,99381.0,99380.0,0.02146603]
[1733653199164,0.6203955,99381.0,99380.0,0.01517645]
[1733653199165,0.49766248,99381.0,99380.0,0.01517645]
[1733653199766,0.62047449,99381.0,99380.0,0.02146596]
[1733653200065,0.57977449,99381.0,99380.0,0.02146596]
[1733653200659,0.57977449,99381.0,99380.0,0.0214658]
[1733653201256,0.58017134,99381.0,99380.0,0.0214658]
[1733653201561,0.58017134,99381.0,99380.0,0.0667168]
[1733653201562,0.58022583,99381.0,99380.0,0.0667168]
[1733653201866,0.45695979,99381.0,99380.0,0.0667168]
[1733653202257,0.45695979,99381.0,99380.0,0.052251]
[1733653202463,0.45695979,99381.0,99380.0,0.06671631]
[1733653202669,0.45695979,99381.0,99380.0,0.052251]
[1733653202963,0.45695979,99381.0,99380.0,0.06707526]
[1733653203167,0.45695979,99381.0,99380.0,0.06671585]
[1733653203365,0.45695979,99381.0,99380.0,0.05854007]
[1733653203553,0.45695979,99381.0,99380.0,0.0667157]
[1733653203554,0.05090979,99381.0,99380.0,0.0667157]
[1733653204051,0.002,99381.0,99380.0,0.0667157]
[1733653207169,0.045247,99388.0,99387.0,0.045247]
[1733653207359,0.045247,99388.0,99387.0,0.0597117]
[1733653207560,8.559e-05,99390.0,99387.0,0.0144647]
[1733653207760,0.3608,99413.0,99389.0,0.045246]
[1733653207761,0.15073683,99402.0,99389.0,0.045246]
[1733653207963,0.15073683,99404.0,99402.0,0.045241]
[1733653208265,0.15067904,99406.0,99405.0,0.045239]
[1733653208465,0.045238,99407.0,99405.0,0.0597037]
[1733653208665,0.045238,99407.0,99406.0,0.0144647]
[1733653210462,0.09028956,99410.0,99406.0,0.0144647]
[1733653210773,0.13552656,99410.0,99409.0,0.04559552]
[1733653210968,0.09412945,99410.0,99409.0,0.06006022]
[1733653211164,0.04889245,99410.0,99409.0,0.0597017]
[1733653211472,9.715e-05,99414.0,99413.0,0.045235]
[1733653211662,9.715e-05,99414.0,99413.0,0.0596997]
[1733653213174,0.00109715,99414.0,99413.0,0.0596997]
[1733653213761,9.715e-05,99414.0,99413.0,0.0616997]
[1733653214180,0.00109715,99414.0,99413.0,0.0666997]
[1733653215063,0.00109715,99414.0,99413.0,0.06505752]
[1733653215264,0.09112602,99414.0,99413.0,0.0666997]
[1733653215574,0.00109715,99414.0,99413.0,0.0666997]
[1733653216370,0.09109875,99414.0,99413.0,0.0666997]
[1733653216771,0.09109875,99414.0,99413.0,0.06669351]
[1733653216972,0.00109715,99414.0,99413.0,0.06669351]
[1733653217367,0.00109715,99414.0,99413.0,0.0604072]
[1733653218170,0.00109715,99414.0,99413.0,0.0151722]
[1733653219280,0.00109715,99414.0,99413.0,0.01014315]
[1733653220270,0.00109715,99414.0,99413.0,0.007]
[1733653222178,0.37314941,99414.0,99413.0,0.007]
[1733653222380,0.36189715,99414.0,99413.0,0.007]
[1733653225277,0.36189715,99414.0,99413.0,0.01517373]
[1733653225278,0.45187717,99414.0,99413.0,0.01517373]
[1733653225588,0.45187717,99414.0,99413.0,0.01014374]
[1733653225589,0.37322419,99414.0,99413.0,0.01014374]
[1733653225782,0.37322419,99414.0,99394.0,0.3608]
[1733653226080,0.045244,99395.0,99394.0,0.3608]
[1733653226274,0.045244,99395.0,99394.0,0.37211798]
[1733653227176,0.045244,99395.0,99394.0,0.01631798]
[1733653227177,0.13530248,99395.0,99394.0,0.01631798]
[1733653227372,0.13630248,99395.0,99394.0,0.01831798]
[1733653227677,0.046244,99395.0,99394.0,0.01831798]
[1733653228188,0.047244,99395.0,99394.0,0.01831798]
[1733653230073,0.047244,99395.0,99394.0,0.007]
[1733653230386,0.047244,99395.0,99394.0,0.01831851]
[1733653234181,0.13747696,99395.0,99394.0,0.01831851]
[1733653234382,0.047244,99395.0,99394.0,0.06356251]
[1733653234577,0.047244,99395.0,99394.0,0.01831851]
[1733653237381,0.047244,99395.0,99394.0,0.01831881]
[1733653237888,0.19749516,99395.0,99394.0,0.01517471]
[1733653238077,0.19749516,99395.0,99374.0,0.00186772]
[1733653238078,0.09615003,99395.0,99374.0,0.00186772]
[1733653238278,0.49633214,99375.0,99374.0,0.00150924]
[1733653238485,0.49633214,99375.0,99374.0,0.00779856]
[1733653238686,0.406053,99375.0,99374.0,0.00779856]
[1733653239082,0.406053,99375.0,99374.0,0.00791688]
[1733653239287,0.49625979,99375.0,99374.0,0.00791688]
[1733653239683,0.406053,99375.0,99374.0,0.00791688]
[1733653240489,0.407053,99375.0,99374.0,0.00791688]
[1733653241081,0.408053,99375.0,99374.0,0.00791688]
[1733653244193,0.002,99375.0,99374.0,0.05317014]
[1733653244588,0.002,99375.0,99374.0,0.41397014]
[1733653245296,0.045249,99384.0,99383.0,0.045249]
[1733653245493,0.045249,99384.0,99383.0,0.0518972]
[1733653245691,0.045249,99384.0,99383.0,0.05153858]
[1733653246088,0.045249,99384.0,99383.0,0.12593858]
[1733653246293,0.045249,99384.0,99383.0,0.1262972]
[1733653246491,0.046249,99384.0,99383.0,0.1262972]
[1733653246893,0.047249,99384.0,99383.0,0.12593858]
[1733653247096,0.047249,99384.0,99383.0,0.1262972]
[1733653247296,0.047249,99384.0,99383.0,0.126296]
[1733653248104,0.047249,99384.0,99383.0,0.13096812]
[1733653250208,0.047249,99384.0,99383.0,0.13411232]
[1733653250407,0.047249,99384.0,99383.0,0.01446332]
[1733653250710,0.002,99384.0,99379.0,0.045251]
[1733653250904,0.002,99384.0,99380.0,0.0148223]
[1733653251207,0.002,99384.0,99379.0,0.045251]
[1733653251208,0.04525,99382.0,99381.0,0.01482273]
[1733653251912,0.04525,99382.0,99381.0,0.01446369]
[1733653252908,0.04525,99382.0,99381.0,0.01546369]
[1733653253110,0.04625,99382.0,99381.0,0.01546369]
[1733653253814,0.04725,99382.0,99381.0,0.01546369]
[1733653254618,0.04725,99382.0,99381.0,0.001]
[1733653254806,0.04725,99382.0,99381.0,0.01546364]
[1733653257915,1.54725,99382.0,99381.0,0.01546364]
[1733653258215,1.59616216,99382.0,99381.0,0.01546364]
[1733653258410,0.045253,99375.0,99374.0,0.00011832]
[1733653258716,0.406053,99375.0,99374.0,0.00011832]
[1733653259014,0.45496912,99375.0,99374.0,0.00011832]
[1733653259212,0.406053,99375.0,99374.0,0.00011832]
[1733653259811,0.408053,99375.0,99374.0,0.00111832]
[1733653260118,0.55859602,99375.0,99374.0,0.00111832]
[1733653261505,0.408053,99375.0,99374.0,0.00111832]
[1733653262314,0.71171739,99375.0,99358.0,0.00035932]
[1733653262611,0.71171739,99375.0,99356.0,0.00035928]
[1733653262612,0.045261,99357.0,99356.0,0.00035928]
[1733653262823,0.13556864,99357.0,99356.0,0.00035928]
[1733653263217,0.045261,99357.0,99356.0,0.00010954]
[1733653263424,0.045261,99357.0,99356.0,0.00046885]
[1733653263716,0.045261,99357.0,99356.0,0.00046878]
[1733653263905,0.13654919,99357.0,99356.0,0.00010954]
[1733653265214,0.046261,99357.0,99356.0,0.00010954]
[1733653265413,0.047261,99357.0,99356.0,0.00010954]
[1733653265718,0.13754919,99357.0,99356.0,0.00010954]
[1733653266413,0.13754919,99357.0,99356.0,0.00640016]
[1733653267221,0.047261,99357.0,99356.0,0.00640016]
[1733653268516,0.408061,99357.0,99356.0,0.01143265]
[1733653270427,0.408061,99357.0,99356.0,0.01457795]
[1733653271011,0.408061,99357.0,99356.0,0.00828733]
[1733653271523,0.52839644,99357.0,99356.0,0.00828733]
[1733653271924,0.408061,99357.0,99356.0,0.00828733]
[1733653272112,0.408061,99357.0,99356.0,0.00325484]
[1733653273726,0.768861,99357.0,99356.0,0.00325484]
[1733653274118,0.88901871,99357.0,99356.0,0.00325484]
[1733653275119,0.768861,99357.0,99356.0,0.00325484]
[1733653275321,0.88901871,99357.0,99356.0,0.00325484]
[1733653276117,0.768861,99357.0,99356.0,0.00325484]
[1733653276318,0.88901871,99357.0,99356.0,0.00325484]
[1733653276518,0.768861,99357.0,99356.0,0.00325484]
[1733653276718,0.88901871,99357.0,99356.0,0.00325484]
[1733653277118,0.768861,99357.0,99356.0,0.00325484]
[1733653277317,0.3628,99357.0,99356.0,0.00325484]
[1733653277515,0.408061,99357.0,99356.0,0.05983985]
[1733653277824,0.408061,99357.0,99356.0,0.05983876]
[1733653278019,0.408061,99357.0,99356.0,0.01457776]
[1733653280020,0.408061,99357.0,99356.0,0.00828723]
[1733653281130,0.408061,99357.0,99356.0,0.00828815]
[1733653281428,0.52821871,99357.0,99356.0,0.00828815]
[1733653281630,0.52827961,99357.0,99356.0,0.00828815]
[1733653281819,0.408061,99357.0,99356.0,0.00828815]
[1733653282214,0.52827961,99357.0,99356.0,0.00828815]
[1733653282431,0.768861,99357.0,99356.0,0.00828815]
[1733653284520,0.768861,99357.0,99356.0,0.00514253]
[1733653284727,0.768861,99357.0,99356.0,0.00828812]
[1733653284926,0.768861,99357.0,99356.0,0.00828811]
[1733653285424,0.768861,99357.0,99356.0,0.02087053]
[1733653285623,0.768861,99357.0,99348.0,0.01127077]
[1733653285624,0.045265,99349.0,99348.0,0.01127077]
[1733653285929,0.406065,99349.0,99348.0,0.00314566]
[1733653286120,2.05657107,99349.0,99348.0,0.00314566]
[1733653286319,1.95499595,99349.0,99348.0,0.00314566]
[1733653286625,1.9061851,99349.0,99348.0,0.00314566]
[1733653286822,1.9071851,99349.0,99348.0,0.00314566]
[1733653287126,1.95711506,99349.0,99348.0,0.00314566]
[1733653289619,0.45711506,99349.0,99348.0,0.00314566]
[1733653290421,0.4081851,99349.0,99348.0,0.00314566]
[1733653290625,0.52866029,99349.0,99348.0,0.00314566]
[1733653291020,0.4081851,99349.0,99348.0,0.00314566]
[1733653291228,0.45711354,99349.0,99348.0,0.00314566]
[1733653291426,0.63767183,99349.0,99348.0,0.00314566]
[1733653291625,0.45711354,99349.0,99348.0,0.00314566]
[1733653294828,0.045266,99346.0,99345.0,0.01104956]
[1733653295029,0.22602371,99346.0,99341.0,7.335e-05]
[1733653295233,0.045268,99342.0,99341.0,7.335e-05]
[1733653295534,0.09419644,99342.0,99341.0,7.335e-05]
[1733653295738,0.09419644,99342.0,99341.0,0.0051073]
[1733653295938,0.09419644,99342.0,99341.0,0.01646723]
[1733653296135,0.09419644,99342.0,99341.0,0.0051073]
[1733653296738,0.045277,99321.0,99313.0,0.18042982]
[1733653297036,0.090537,99341.0,99314.0,0.00629327]
[1733653297037,0.13566116,99315.0,99314.0,0.00629327]
[1733653297236,0.04528,99315.0,99314.0,0.00629327]
[1733653297628,0.04528,99315.0,99314.0,0.00956317]
[1733653298331,0.04528,99315.0,99314.0,0.00956275]
[1733653299039,0.09038116,99318.0,99316.0,0.04528]
[1733653299334,0.001,99321.0,99317.0,0.00943939]
[1733653299335,0.045278,99319.0,99317.0,0.00943939]
[1733653299540,0.045278,99319.0,99318.0,0.00943939]
[1733653299841,0.045278,99319.0,99318.0,0.05471839]
[1733653300836,0.046278,99319.0,99318.0,0.05471839]
[1733653301536,0.046278,99319.0,99318.0,0.00943939]
[1733653302128,0.046278,99319.0,99318.0,0.00979835]
[1733653302334,0.13658906,99319.0,99318.0,0.00943939]
[1733653302535,0.13758906,99319.0,99318.0,0.00943939]
[1733653303132,0.047278,99319.0,99318.0,0.00943939]
[1733653303345,0.13757317,99319.0,99318.0,0.00943939]
[1733653303536,0.13757311,99319.0,99318.0,0.00943939]
[1733653303737,0.047278,99319.0,99318.0,0.00943939]
[1733653304345,0.047278,99319.0,99318.0,0.00979835]
[1733653305041,0.047278,99319.0,99318.0,0.00943939]
[1733653305244,0.047278,99319.0,99314.0,0.00012336]
[1733653305245,0.04528,99315.0,99314.0,0.00012336]
[1733653305433,0.04528,99315.0,99314.0,0.00956299]
[1733653305637,0.04528,99315.0,99314.0,0.00012336]
[1733653305842,0.04528,99315.0,99314.0,0.00956299]
[1733653306647,0.04728,99315.0,99314.0,0.01459739]
[1733653312237,0.04728,99315.0,99314.0,0.19514761]
[1733653312442,0.04728,99315.0,99314.0,0.01459739]
[1733653314451,0.04728,99315.0,99314.0,0.19514761]
[1733653315344,0.04728,99315.0,99314.0,0.01459739]
[1733653315545,0.05841489,99315.0,99314.0,0.01459739]
[1733653315745,0.05841489,99315.0,99314.0,0.01495739]
[1733653316246,0.05841489,99315.0,99314.0,0.1952752]
[1733653316449,0.05841489,99315.0,99314.0,0.0149571]
[1733653316644,0.05841489,99315.0,99314.0,0.1952752]
[1733653316840,0.05841489,99315.0,99314.0,0.01459709]
[1733653317043,0.05841489,99315.0,99314.0,0.1952752]
[1733653317239,0.05841489,99315.0,99314.0,0.0149571]
[1733653317440,0.05841489,99315.0,99314.0,0.01459709]
[1733653318749,0.05841489,99315.0,99314.0,0.01495699]
[1733653318949,0.05841489,99315.0,99314.0,0.01459709]
[1733653319255,0.17892288,99315.0,99314.0,0.01459709]
[1733653319454,0.17892288,99315.0,99314.0,0.01495701]
[1733653319657,0.05841489,99315.0,99314.0,0.01459709]
[1733653320244,0.17892288,99315.0,99314.0,0.01495705]
[1733653320554,0.17892288,99315.0,99314.0,0.01495712]
[1733653320852,0.17892288,99315.0,99314.0,0.01459709]
[1733653321053,0.05841489,99315.0,99314.0,0.01459709]
[1733653321256,0.17892288,99315.0,99314.0,0.01459709]
[1733653321656,0.05841489,99315.0,99314.0,0.01459709]
[1733653322049,0.05841489,99315.0,99314.0,0.24059384]
[1733653322050,0.002,99315.0,99314.0,0.24059384]
[1733653322350,0.002,99315.0,99314.0,0.05987809]
[1733653322545,0.002,99315.0,99314.0,0.29990618]
[1733653322853,0.09247943,99315.0,99314.0,0.05987809]
[1733653323156,0.002,99315.0,99314.0,0.29990618]
[1733653323554,0.0893842,99315.0,99314.0,0.29990618]
[1733653324143,0.045278,99320.0,99319.0,0.045278]
[1733653324450,0.045278,99320.0,99319.0,0.05975173]
[1733653324756,0.045278,99320.0,99319.0,0.045278]
[1733653324961,0.045278,99320.0,99319.0,0.05975105]
[1733653325149,0.045278,99320.0,99319.0,0.05975084]
[1733653325344,0.001,99320.0,99319.0,0.05975084]
[1733653325755,0.001,99320.0,99319.0,0.36096057]
[1733653325945,0.001,99320.0,99319.0,0.37903814]
[1733653326150,0.001,99320.0,99319.0,0.39037599]
[1733653326351,0.12063109,99334.0,99319.0,0.34509799]
[1733653326650,0.12063109,99340.0,99339.0,0.045269]
[1733653326861,0.3609201,99349.0,99339.0,0.19513851]
[1733653326862,0.19590099,99345.0,99339.0,0.19513851]
[1733653327047,0.19590099,99345.0,99344.0,0.045267]
[1733653327248,0.045266,99345.0,99344.0,0.05973984]
[1733653327859,0.045266,99345.0,99344.0,0.01447284]
[1733653328363,0.045266,99345.0,99344.0,0.01547284]
[1733653329258,0.045266,99345.0,99344.0,0.01583214]
[1733653329560,0.045266,99345.0,99344.0,0.01547284]
[1733653334256,0.3609201,99349.0,99348.0,0.045265]
[1733653334564,0.4061851,99349.0,99348.0,0.05973784]
[1733653334952,0.4061851,99349.0,99348.0,0.05973435]
[1733653337067,0.4061851,99349.0,99348.0,0.01446935]
[1733653337762,0.4061851,99349.0,99348.0,0.00817833]
[1733653338352,0.55682009,99349.0,99348.0,0.00314578]
[1733653339366,0.45511381,99349.0,99348.0,0.00314578]
[1733653340365,0.45511381,99349.0,99317.0,0.0323]
[1733653340366,0.045266,99347.0,99320.0,0.00035936]
[1733653340557,0.045266,99347.0,99321.0,0.01132581]
[1733653340558,0.045277,99322.0,99321.0,0.01132581]
[1733653341462,0.045277,99322.0,99321.0,0.00503369]
[1733653341871,0.046277,99322.0,99321.0,0.00503369]
[1733653342962,0.047277,99322.0,99321.0,0.00503369]
[1733653343565,0.047277,99322.0,99321.0,0.01132656]
[1733653346161,0.04528,99315.0,99314.0,0.00012336]
[1733653346362,0.04528,99315.0,99314.0,0.01145024]
[1733653347265,0.04628,99315.0,99314.0,0.01145024]
[1733653347870,0.04728,99315.0,99314.0,0.01145024]
[1733653350473,0.04728,99315.0,99314.0,0.0118101]
[1733653352074,0.04628,99315.0,99314.0,0.0118101]
[1733653352271,0.04728,99315.0,99314.0,0.0118101]
[1733653352465,0.04728,99315.0,99314.0,0.01495638]
[1733653353367,0.04728,99315.0,99314.0,0.01459659]
[1733653355662,0.04728,99315.0,99314.0,0.01495644]
[1733653356068,0.04728,99315.0,99314.0,0.01495642]
[1733653356371,0.04728,99315.0,99314.0,0.00012336]
[1733653356571,0.04728,99315.0,99314.0,0.01495643]
[1733653358466,0.04728,99315.0,99314.0,0.01459661]
[1733653361473,0.04728,99315.0,99314.0,0.19526228]
[1733653361681,0.04728,99315.0,99314.0,0.01459661]
[1733653362070,1.54728,99315.0,99314.0,0.01459661]
[1733653362470,0.04728,99315.0,99314.0,0.01459661]
[1733653366777,0.04728,99315.0,99314.0,0.01459841]
[1733653367369,0.04728,99315.0,99314.0,0.19526408]
[1733653367971,0.04728,99315.0,99314.0,0.01459841]
[1733653369478,0.06728,99315.0,99314.0,0.01459841]
[1733653370267,0.06728,99315.0,99314.0,0.19526408]
[1733653370681,0.06728,99315.0,99314.0,0.01459841]
[1733653370980,0.29698684,99315.0,99314.0,0.01459841]
[1733653371279,0.045285,99304.0,99299.0,0.18066567]
[1733653371473,0.045285,99304.0,99292.0,0.00151066]
[1733653371474,0.766887,99301.0,99294.0,0.18102672]
[1733653371669,0.91767464,99301.0,99293.0,0.18066567]
[1733653371988,0.91767464,99301.0,99292.0,0.00151066]
[1733653371989,0.99678131,99301.0,99292.0,0.00151066]
[1733653372278,0.81583614,99301.0,99292.0,0.00157782]
[1733653372671,0.82667984,99301.0,99292.0,0.00157782]
[1733653372883,0.46587984,99301.0,99292.0,0.00157782]
[1733653373187,0.001,99301.0,99300.0,0.145287]
[1733653373680,0.001,99304.0,99301.0,0.045287]
[1733653373872,0.001,99304.0,99303.0,0.045286]
[1733653374068,0.001,99304.0,99300.0,0.1]
[1733653374069,0.045283,99309.0,99305.0,0.045285]
[1733653374273,0.37166888,99312.0,99311.0,0.045282]
[1733653374274,0.48132376,99312.0,99311.0,0.045282]
[1733653374583,0.406082,99312.0,99311.0,0.045282]
[1733653374883,0.045283,99309.0,99308.0,0.18081006]
[1733653375575,0.045283,99309.0,99303.0,0.18117057]
[1733653375772,0.045285,99304.0,99303.0,0.00036051]
[1733653376169,0.045286,99303.0,99302.0,0.00036051]
[1733653376475,0.045286,99303.0,99302.0,0.00036035]
[1733653376677,0.16580676,99309.0,99300.0,0.1]
[1733653376678,0.045287,99301.0,99300.0,0.1]
[1733653377082,0.045287,99301.0,99300.0,0.28081006]